bitfinex-derivatives/quotes_ETHF0:USTF0_20260213
["timestamp","ask_amount","ask_price","bid_price","bid_amount"]
[1770991075291,0.58859766,1971.3,1970.3,0.60115706]
[1770991080391,0.58859766,1971.1,1970.3,0.60115706]
[1770991080588,0.58859766,1971.1,1969.9,0.59739437]
[1770991080589,0.25389,1970.8,1969.9,0.59739437]
[1770991080891,0.55004942,1970.7,1969.9,0.59739437]
[1770991081687,0.55004942,1970.7,1969.9,0.60190425]
[1770991082084,0.55004942,1970.9,1969.9,0.60190425]
[1770991083692,0.55004942,1970.8,1969.9,0.60190425]
[1770991085090,0.55004942,1971.1,1969.9,0.60190425]
[1770991085895,0.55004942,1971.1,1970.1,0.59739437]
[1770991086491,0.55004942,1971.4,1970.3,0.59739437]
[1770991086889,0.55004942,1971.7,1970.5,0.59739437]
[1770991088700,0.55004942,1971.7,1970.7,0.59739437]
[1770991092109,0.55004942,1971.9,1970.7,0.59739437]
[1770991093604,0.55004942,1971.7,1970.7,0.59739437]
[1770991094004,0.55004942,1971.5,1970.7,0.59739437]
[1770991094305,0.55004942,1971.5,1970.3,0.59739437]
[1770991096608,0.55004942,1971.5,1970.4,0.59739437]
[1770991097312,0.55004942,1971.7,1970.6,0.59739437]
[1770991097709,0.55004942,1971.7,1970.8,0.59739437]
[1770991098413,0.55004942,1971.9,1970.8,0.59739437]
[1770991098815,0.55004942,1971.9,1970.8,0.09739437]
[1770991100314,0.55004942,1971.9,1970.9,0.40880544]
[1770991102518,0.0039806,1972.0,1971.1,0.41367719]
[1770991102712,0.55403002,1972.0,1971.1,0.41367719]
[1770991105418,0.55004942,1971.8,1970.9,0.41382316]
[1770991113518,0.55179166,1971.6,1970.9,0.41382316]
[1770991113930,0.55179166,1971.5,1970.6,0.39072949]
[1770991114622,0.55179166,1971.3,1970.4,0.38461062]
[1770991115423,0.55179166,1971.1,1970.4,0.38461062]
[1770991116026,0.55179166,1971.1,1970.1,0.38461062]
[1770991117230,0.57302021,1971.2,1970.3,0.38378718]
[1770991121833,0.57302021,1971.2,1970.4,0.25394]
[1770991122034,0.57302021,1971.4,1970.5,0.38236851]
[1770991123733,0.57302021,1971.3,1970.3,0.40968461]
[1770991124037,0.57302021,1971.3,1969.8,16.39523161]
[1770991124038,0.25396,1970.3,1969.6,1.96469985]
[1770991124236,10.999,1970.2,1969.3,0.59812396]
[1770991124542,3.02454768,1970.6,1969.3,0.59812396]
[1770991124732,3.02454768,1970.9,1969.5,0.60415473]
[1770991124929,4.31347308,1970.8,1969.7,0.60415473]
[1770991125132,0.00415576,1970.8,1969.7,0.6093715]
[1770991125430,4.55322878,1970.7,1969.7,0.6093715]
[1770991125630,4.29970826,1970.6,1969.7,0.6093715]
[1770991125832,0.2539,1970.7,1969.7,0.6093715]
[1770991126139,0.2539,1970.7,1969.7,0.00521677]
[1770991126435,0.2539,1970.7,1968.9,6.04093524]
[1770991126436,3.02454768,1970.3,1969.0,0.60415473]
[1770991126631,4.29737213,1970.2,1969.2,0.62771283]
[1770991126833,3.02870344,1970.8,1969.5,0.25406]
[1770991127141,7.59268533,1970.7,1969.6,0.62771283]
[1770991127436,0.2539,1970.7,1969.6,0.63219187]
[1770991127633,0.00415576,1970.8,1969.6,0.63219187]
[1770991128031,0.00415576,1970.8,1969.8,0.62771283]
[1770991130142,0.00415576,1970.8,1969.9,0.25401]
[1770991130345,0.00415576,1970.8,1970.0,0.63521688]
[1770991131638,11.014,1971.3,1970.0,0.63521688]
[1770991132139,3.27832768,1971.7,1970.3,0.25395]
[1770991132332,4.30994096,1971.6,1970.4,0.63461426]
[1770991132640,0.00548766,1971.6,1970.4,0.63461426]
[1770991132836,0.00548766,1971.6,1970.6,0.63593696]
[1770991139636,0.00548766,1971.6,1970.8,0.63468441]
[1770991146654,11.001,1972.1,1971.0,0.6390348]
[1770991146948,4.43907926,1972.0,1971.0,0.6390348]
[1770991147153,11.001,1972.1,1971.0,0.6390348]
[1770991147851,11.00672371,1972.1,1971.0,0.64364525]
[1770991148049,0.00572371,1972.1,1971.0,0.64364525]
[1770991149858,4.43619842,1972.0,1971.0,0.64364525]
[1770991150054,0.00572371,1972.1,1971.0,0.64364525]
[1770991150354,4.43578323,1972.0,1971.0,0.64364525]
[1770991150560,0.25373,1972.0,1971.0,0.64364525]
[1770991150759,4.43578623,1971.9,1971.0,0.64364525]
[1770991150958,0.25373,1972.0,1971.0,0.64364525]
[1770991151257,4.43581197,1971.9,1971.0,0.64364525]
[1770991151552,0.25373,1972.0,1971.0,0.64364525]
[1770991151757,4.43539084,1971.9,1971.0,0.64364525]
[1770991151957,0.25373,1972.0,1971.0,0.64364525]
[1770991152258,4.43474975,1971.9,1971.0,0.64364525]
[1770991152458,0.25373,1972.0,1971.0,0.64364525]
[1770991152658,4.43475133,1971.9,1971.0,0.64364525]
[1770991152858,0.25373,1972.0,1971.0,0.64364525]
[1770991153059,4.43475249,1971.9,1971.0,0.64364525]
[1770991153255,0.25373,1972.0,1971.0,0.64364525]
[1770991153558,0.00572371,1972.1,1971.0,0.64364525]
[1770991153755,4.41842365,1972.0,1971.0,0.64364525]
[1770991153956,0.00572371,1972.1,1971.0,0.64364525]
[1770991154156,4.4213793,1972.0,1971.0,0.64364525]
[1770991154357,0.00572371,1972.1,1971.0,0.64364525]
[1770991155758,4.42217395,1972.0,1971.0,0.64364525]
[1770991155960,0.00572371,1972.1,1971.0,0.64364525]
[1770991156163,4.42231462,1972.0,1971.0,0.64364525]
[1770991156356,0.00572371,1972.1,1971.0,0.64364525]
[1770991156561,4.42503161,1972.0,1971.0,0.64364525]
[1770991156766,0.00572371,1972.1,1971.0,0.64364525]
[1770991156968,4.42505943,1972.0,1971.0,0.64364525]
[1770991157165,4.43111413,1971.9,1971.0,0.64364525]
[1770991157465,3.03288297,1972.1,1971.0,0.64364525]
[1770991157667,4.43099412,1972.0,1971.0,0.64364525]
[1770991157866,4.43099412,1971.9,1971.0,0.64364525]
[1770991158056,0.00572371,1972.1,1971.0,0.64364525]
[1770991158564,4.43238078,1972.0,1971.0,0.64364525]
[1770991158766,0.00572371,1972.1,1971.0,0.64364525]
[1770991158961,4.43191568,1972.0,1971.0,0.64364525]
[1770991159166,0.00572371,1972.1,1971.0,0.64364525]
[1770991159367,4.4338871,1972.0,1971.0,0.64364525]
[1770991159568,0.00572371,1972.1,1971.0,0.64364525]
[1770991159771,4.43377505,1972.0,1971.0,0.64364525]
[1770991159970,0.00572371,1972.1,1971.0,0.64364525]
[1770991160172,4.43377214,1972.0,1971.0,0.64364525]
[1770991160371,0.00572371,1972.1,1971.0,0.64364525]
[1770991160673,4.43653586,1972.0,1971.0,0.64364525]
[1770991160970,0.00572371,1972.1,1971.0,0.64364525]
[1770991161171,3.03288297,1972.1,1971.0,0.64364525]
[1770991163474,7.46376929,1972.0,1971.0,0.64364525]
[1770991163675,4.43661003,1971.9,1971.0,0.64364525]
[1770991163873,4.43661003,1971.8,1971.0,0.64364525]
[1770991164173,3.03288297,1972.1,1971.0,0.64364525]
[1770991164375,14.11488297,1972.1,1971.0,0.64364525]
[1770991164571,4.44113704,1972.0,1971.0,0.64364525]
[1770991165477,4.44113704,1972.0,1971.1,0.25385]
[1770991165673,4.44113704,1972.0,1971.2,0.61009905]
[1770991170874,7.4682963,1972.0,1971.2,0.61009905]
[1770991171075,4.44113704,1971.9,1971.2,0.61009905]
[1770991171279,4.44113704,1971.8,1971.2,0.61009905]
[1770991171477,3.02715926,1972.0,1971.2,0.61009905]
[1770991171679,7.45748793,1972.0,1971.2,0.61009905]
[1770991172283,3.02715926,1971.9,1971.0,0.63463878]
[1770991173280,7.45748793,1971.8,1971.0,0.63463878]
[1770991173483,4.43032867,1971.7,1971.0,0.63463878]
[1770991173780,3.02715926,1971.8,1971.0,0.63463878]
[1770991173781,4.43032867,1971.6,1971.0,0.63463878]
[1770991174077,3.02715926,1971.8,1971.0,0.00461045]
[1770991174078,3.28092926,1971.8,1971.0,0.00461045]
[1770991174283,3.02715926,1971.6,1971.0,0.00461045]
[1770991174487,3.02715926,1971.5,1971.0,0.60944692]
[1770991175685,7.45125318,1971.5,1971.0,0.60944692]
[1770991175887,4.42409392,1971.4,1971.0,0.60944692]
[1770991176083,4.42409392,1971.3,1971.0,0.60944692]
[1770991176283,3.02715926,1971.5,1971.0,0.60944692]
[1770991176585,3.02715926,1971.5,1971.0,0.00461045]
[1770991176987,3.02715926,1971.5,1971.0,0.60583398]
[1770991177584,3.02715926,1971.4,1970.4,0.60122353]
[1770991177890,14.26315926,1971.3,1970.4,0.60122353]
[1770991178082,4.37005191,1971.2,1970.4,0.60122353]
[1770991178282,4.37005191,1971.1,1970.4,0.60122353]
[1770991178585,11.236,1971.3,1970.4,0.60618435]
[1770991178787,4.35487124,1971.2,1970.4,0.60618435]
[1770991178982,11.236,1971.3,1970.4,0.60618435]
[1770991179184,4.35484896,1971.2,1970.4,0.60618435]
[1770991179489,11.236,1971.3,1970.4,0.60618435]
[1770991179688,4.35304949,1971.2,1970.4,0.60618435]
[1770991179884,11.236,1971.3,1970.4,0.60618435]
[1770991180085,3.02715926,1971.6,1970.4,0.60618435]
[1770991180284,4.35248397,1971.5,1970.4,0.60618435]
[1770991180485,14.28715926,1971.7,1970.4,0.60618435]
[1770991180788,4.35208891,1971.6,1970.4,0.60618435]
[1770991180989,4.35208891,1971.5,1970.4,0.60618435]
[1770991181187,14.28715926,1971.7,1970.4,0.60618435]
[1770991181390,4.35150761,1971.6,1970.4,0.60618435]
[1770991181587,4.35150761,1971.5,1970.4,0.60618435]
[1770991181899,14.28715926,1971.7,1970.4,0.60618435]
[1770991182093,4.35150696,1971.6,1970.4,0.60618435]
[1770991182388,4.35150696,1971.5,1970.4,0.60618435]
[1770991182590,14.28715926,1971.7,1970.4,0.60618435]
[1770991182891,4.35175895,1971.6,1970.4,0.60618435]
[1770991183090,4.35175895,1971.5,1970.4,0.60618435]
[1770991183290,14.28715926,1971.7,1970.4,0.60618435]
[1770991183587,4.3517531,1971.6,1970.4,0.60618435]
[1770991183797,4.3517531,1971.5,1970.4,0.60618435]
[1770991184094,14.28715926,1971.7,1970.4,0.60618435]
[1770991184294,4.35175571,1971.6,1970.4,0.60618435]
[1770991184587,4.60555571,1971.5,1970.4,0.60618435]
[1770991184892,4.35175571,1971.4,1970.4,0.60618435]
[1770991186294,4.35175571,1971.3,1970.4,0.60618435]
[1770991186492,3.28095926,1971.5,1970.4,0.60618435]
[1770991186493,0.2538,1971.5,1970.4,0.60618435]
[1770991186692,4.35091501,1971.4,1970.4,0.60618435]
[1770991186994,0.2538,1971.5,1970.4,0.60618435]
[1770991187293,4.35078908,1971.4,1970.4,0.60618435]
[1770991187493,0.2538,1971.5,1970.4,0.60618435]
[1770991187790,4.35064213,1971.4,1970.4,0.60618435]
[1770991187989,0.2538,1971.5,1970.4,0.60618435]
[1770991188190,4.35048408,1971.4,1970.4,0.60618435]
[1770991188391,0.2538,1971.5,1970.4,0.60618435]
[1770991188691,4.35028126,1971.4,1970.4,0.60618435]
[1770991188894,0.2538,1971.5,1970.4,0.60618435]
[1770991189094,4.35015953,1971.4,1970.4,0.60618435]
[1770991189293,0.2538,1971.5,1970.4,0.60618435]
[1770991189593,4.3502537,1971.4,1970.4,0.60618435]
[1770991189793,0.2538,1971.5,1970.4,0.60618435]
[1770991189989,4.35011667,1971.4,1970.4,0.60618435]
[1770991190194,0.2538,1971.5,1970.4,0.60618435]
[1770991190391,4.35024295,1971.4,1970.4,0.60618435]
[1770991190592,0.2538,1971.5,1970.4,0.60618435]
[1770991190792,4.35030269,1971.4,1970.4,0.60618435]
[1770991190992,0.2538,1971.5,1970.4,0.60618435]
[1770991191195,4.35036225,1971.4,1970.4,0.60618435]
[1770991191392,0.2538,1971.5,1970.4,0.60618435]
[1770991191593,4.35068527,1971.4,1970.4,0.60618435]
[1770991191794,0.2538,1971.5,1970.4,0.60618435]
[1770991192095,4.35068527,1971.4,1970.4,0.60618435]
[1770991192291,0.2538,1971.5,1970.4,0.60618435]
[1770991192596,4.35089715,1971.4,1970.4,0.60618435]
[1770991192897,3.28095926,1971.5,1970.4,0.60618435]
[1770991193096,4.35089779,1971.4,1970.4,0.60618435]
[1770991193296,4.35089779,1971.3,1970.4,0.60618435]
[1770991193497,3.28095926,1971.5,1970.4,0.60618435]
[1770991193698,4.35132448,1971.4,1970.4,0.60618435]
[1770991193895,4.35132448,1971.3,1970.4,0.60618435]
[1770991194097,3.02715926,1971.4,1970.4,0.60618435]
[1770991194599,4.35164751,1971.3,1970.4,0.60618435]
[1770991194799,3.28095926,1971.5,1970.4,0.60618435]
[1770991194994,4.35159679,1971.4,1970.4,0.60618435]
[1770991195190,4.35159679,1971.3,1970.4,0.60618435]
[1770991195393,3.28095926,1971.5,1970.4,0.60618435]
[1770991195594,4.35219784,1971.4,1970.4,0.60618435]
[1770991195794,4.35219784,1971.3,1970.4,0.60618435]
[1770991196003,3.28095926,1971.5,1970.4,0.60618435]
[1770991196298,4.35212226,1971.4,1970.4,0.60618435]
[1770991196498,3.28095926,1971.5,1970.4,0.60618435]
[1770991196499,4.35212226,1971.3,1970.4,0.60618435]
[1770991196700,3.28095926,1971.5,1970.4,0.60618435]
[1770991197000,4.35330302,1971.4,1970.4,0.60618435]
[1770991197194,4.35330302,1971.3,1970.4,0.60618435]
[1770991197394,48.31741633,1971.5,1970.4,0.60618435]
[1770991197796,4.35452412,1971.4,1970.4,0.60618435]
[1770991197997,4.35452412,1971.3,1970.4,0.60618435]
[1770991198198,3.02715926,1971.4,1970.4,0.60618435]
[1770991200405,0.25384,1971.2,1970.4,0.62156369]
[1770991200704,4.35566725,1971.1,1970.4,0.62156369]
[1770991201499,14.51415926,1971.4,1970.4,0.62156369]
[1770991201705,4.36021112,1971.3,1970.4,0.62156369]
[1770991201903,11.487,1971.4,1970.4,0.62156369]
[1770991202104,4.36017819,1971.3,1970.4,0.62156369]
[1770991202402,4.36228317,1971.2,1970.4,0.62156369]
[1770991202602,11.487,1971.4,1970.4,0.62156369]
[1770991202803,4.3576877,1971.3,1970.4,0.62156369]
[1770991202995,3.02715926,1971.6,1970.5,0.6267628]
[1770991203193,3.02715926,1971.5,1970.5,0.6267628]
[1770991203401,4.35758902,1971.4,1970.5,0.6267628]
[1770991203596,4.35758902,1971.3,1970.5,0.6267628]
[1770991203801,3.02715926,1971.6,1970.5,0.6267628]
[1770991204006,7.38670741,1971.6,1970.5,0.6267628]
[1770991204204,3.02715926,1971.5,1970.5,0.6267628]
[1770991204706,3.02715926,1971.3,1970.5,0.6267628]
[1770991204908,18.91070741,1971.3,1970.4,0.00496082]
[1770991205109,4.35954815,1971.2,1970.4,0.00496082]
[1770991205405,3.02715926,1971.2,1970.4,0.00496082]
[1770991205604,3.28100926,1971.1,1970.2,0.62659867]
[1770991205907,7.38670741,1971.0,1970.2,0.62659867]
[1770991206308,4.35954815,1970.9,1970.2,0.62659867]
[1770991206606,4.35954815,1970.8,1970.2,0.63058141]
[1770991206805,11.54,1970.9,1970.2,0.63058141]
[1770991207006,4.35883865,1970.8,1970.2,0.63058141]
[1770991207208,11.54,1970.9,1970.2,0.63058141]
[1770991207409,4.35764477,1970.8,1970.2,0.63058141]
[1770991207609,14.57315926,1971.3,1970.2,0.63058141]
[1770991207808,4.35715514,1971.2,1970.2,0.63058141]
[1770991208005,4.35715514,1971.1,1970.2,0.63058141]
[1770991208211,4.35715514,1971.0,1970.2,0.63058141]
[1770991208512,3.02715926,1971.2,1970.2,0.63058141]
[1770991208716,7.3843856,1971.2,1970.2,0.63058141]
[1770991209311,4.35722634,1971.1,1970.2,0.63058141]
[1770991209510,4.35722634,1971.0,1970.2,0.63058141]
[1770991209712,14.57315926,1971.3,1970.2,0.63058141]
[1770991209904,4.35673678,1971.2,1970.2,0.63058141]
[1770991210103,4.35673678,1971.1,1970.2,0.63058141]
[1770991210302,4.35673678,1971.0,1970.2,0.63058141]
[1770991210503,3.02715926,1971.2,1970.2,0.63058141]
[1770991210706,7.38395842,1971.2,1970.2,0.63058141]
[1770991211921,11.546,1971.3,1970.3,0.62979952]
[1770991212107,4.35635701,1971.2,1970.5,0.62979952]
[1770991212313,3.02715926,1971.5,1970.5,0.62979952]
[1770991212510,7.38359348,1971.5,1970.5,0.62979952]
[1770991213817,4.35643422,1971.4,1970.5,0.62979952]
[1770991214016,4.35643422,1971.3,1970.5,0.62979952]
[1770991214218,3.02715926,1971.5,1970.5,0.62979952]
[1770991214420,7.3840375,1971.5,1970.5,0.62979952]
[1770991214718,3.02715926,1971.4,1970.5,0.62979952]
[1770991215218,3.02715926,1971.3,1970.4,0.65137484]
[1770991215409,3.02715926,1971.3,1970.2,0.65535758]
[1770991215410,14.67215926,1971.2,1970.2,0.65535758]
[1770991215613,3.02715926,1970.9,1970.2,0.65535758]
[1770991215814,4.35687824,1970.8,1970.2,0.65535758]
[1770991216015,3.02715926,1971.0,1970.2,0.65535758]
[1770991216518,3.02715926,1970.9,1970.2,0.00398274]
[1770991216718,11.655,1970.8,1969.8,0.65417637]
[1770991217013,4.35766701,1970.7,1969.9,0.65417637]
[1770991217213,11.655,1970.8,1969.9,0.65417637]
[1770991217518,3.02715926,1970.9,1969.9,0.65417637]
[1770991217714,3.03307022,1970.9,1969.9,0.65845439]
[1770991217912,0.00591096,1970.9,1969.9,0.65845439]
[1770991218108,3.03307022,1970.9,1969.9,0.65845439]
[1770991218312,4.35619806,1970.8,1969.9,0.65845439]
[1770991218513,0.00591096,1970.9,1969.9,0.65845439]
[1770991218718,4.35533881,1970.8,1969.9,0.65845439]
[1770991218920,0.00591096,1970.9,1969.9,0.65845439]
[1770991219109,4.35529561,1970.8,1969.9,0.65845439]
[1770991219313,0.00591096,1970.9,1969.9,0.65845439]
[1770991219511,4.3549316,1970.8,1969.9,0.65845439]
[1770991219711,0.00591096,1970.9,1969.9,0.65845439]
[1770991220020,0.00591096,1970.9,1970.2,0.65394892]
[1770991220422,0.00591096,1970.9,1970.2,0.15394892]
[1770991221721,0.39362354,1970.9,1970.2,0.15394892]
[1770991222924,0.00591096,1970.9,1970.2,0.15394892]
[1770991223427,0.37070864,1971.4,1970.6,0.57206284]
[1770991223721,0.37070864,1971.2,1970.6,0.57206284]
[1770991223927,0.37070864,1971.2,1970.5,0.57206284]
[1770991224226,0.37070864,1971.5,1970.7,0.57206284]
[1770991224429,0.37569285,1971.2,1970.7,0.57206284]
[1770991225322,0.00498421,1971.2,1970.7,0.57206284]
[1770991225721,0.36778116,1971.6,1970.7,0.57206284]
[1770991226022,0.37276537,1971.7,1970.7,0.57206284]
[1770991226222,0.37276537,1971.5,1970.7,0.57206284]
[1770991226623,0.37832387,1971.5,1970.7,0.57206284]
[1770991226826,0.0055585,1971.5,1970.7,0.57206284]
[1770991227527,0.0055585,1971.5,1970.9,0.57206284]
[1770991231734,0.41399025,1971.9,1970.9,0.57206284]
[1770991232629,0.41846019,1971.9,1970.9,0.57206284]
[1770991234031,4.74901162,1971.8,1970.9,0.57206284]
[1770991234231,0.41303635,1971.7,1970.9,0.08466284]
[1770991234525,0.41303635,1971.7,1970.5,0.5667919]
[1770991235530,0.58933082,1971.5,1970.5,0.5667919]
[1770991236230,0.57979265,1971.3,1970.5,0.5667919]
[1770991236823,0.57979265,1971.3,1970.3,6.519]
[1770991237026,0.57979265,1971.3,1970.3,7.06762066]
[1770991237229,0.57979265,1971.3,1970.4,0.54862066]
[1770991244045,0.57979265,1971.1,1970.4,0.54862066]
[1770991245045,0.57979265,1971.1,1970.3,7.06762066]
[1770991245747,0.57979265,1971.1,1970.3,0.54862066]
[1770991246645,0.57979265,1971.3,1970.3,0.54862066]
[1770991248049,0.57979265,1971.3,1970.4,0.54862066]
[1770991250544,3.02715926,1971.7,1970.8,0.54862066]
[1770991250753,0.57979265,1971.7,1970.8,0.54862066]
[1770991251051,0.57979265,1971.8,1970.8,0.54862066]
[1770991251248,0.58426259,1971.9,1970.8,0.54862066]
[1770991252042,0.57979265,1971.7,1970.8,0.54862066]
[1770991254756,0.57979265,1971.5,1970.8,0.54862066]
[1770991255353,0.57979265,1971.5,1970.7,0.54862066]
[1770991260454,0.57979265,1971.5,1970.5,0.54862066]
[1770991260654,0.58967541,1971.3,1970.5,0.54862066]
[1770991263760,0.58967541,1971.1,1970.2,0.57024775]
[1770991263962,4.34516903,1971.0,1970.2,0.57024775]
[1770991264261,0.58967541,1970.9,1970.2,0.57024775]
[1770991268465,0.58967541,1971.1,1970.2,0.57024775]
[1770991268764,3.02715926,1971.3,1970.4,0.57024775]
[1770991268765,0.58967541,1971.3,1970.4,0.57024775]
[1770991269363,3.28096926,1971.5,1970.4,0.57024775]
[1770991269364,0.58967541,1971.1,1970.4,0.57024775]
[1770991269566,0.58967541,1971.1,1970.2,0.57024775]
[1770991269766,4.34389611,1971.0,1970.2,0.57024775]
[1770991269963,0.58967541,1970.9,1970.2,0.57024775]
[1770991270968,0.58967541,1970.8,1970.2,0.57024775]
[1770991271963,0.58967541,1970.8,1969.9,0.25827802]
[1770991271964,2.44558212,1970.4,1970.1,0.57024775]
[1770991272268,0.59410487,1970.4,1970.1,0.57024775]
[1770991275172,0.00442946,1970.4,1970.1,0.57024775]
[1770991276370,0.59410487,1970.4,1970.1,0.57024775]
[1770991276571,0.00442946,1970.4,1970.1,0.57024775]
[1770991276868,0.00442946,1970.4,1969.9,0.57452577]
[1770991277573,0.59410487,1970.4,1969.9,0.57452577]
[1770991278274,0.00442946,1970.4,1969.9,0.57452577]
[1770991279376,0.58967541,1971.0,1970.2,0.57024775]
[1770991280473,0.59410656,1971.0,1970.2,0.57024775]
[1770991280970,3.02715926,1971.3,1970.5,0.82417775]
[1770991281175,45.62613248,1971.6,1971.2,0.57024775]
[1770991281176,0.58967541,1971.6,1971.2,0.57024775]
[1770991281380,0.58967541,1971.6,1971.0,0.57024775]
[1770991282276,0.58967541,1971.2,1970.4,4.48816366]
[1770991282576,0.58967541,1971.0,1970.4,0.57024775]
[1770991282777,0.58967541,1970.8,1970.4,0.57024775]
[1770991285480,0.58967541,1971.3,1970.4,0.57024775]
[1770991291189,0.58967541,1971.3,1970.5,0.58789528]
[1770991291585,0.56430236,1971.6,1970.9,0.58789528]
[1770991292589,0.00359404,1971.6,1970.9,0.58789528]
[1770991294183,40.8,1971.7,1971.1,0.58789528]
[1770991294685,41.36070832,1971.7,1971.1,0.58789528]
[1770991295279,40.80367682,1971.7,1971.1,0.58789528]
[1770991296889,41.36442156,1971.7,1971.1,0.58789528]
[1770991297385,0.56074474,1971.6,1971.0,0.58236806]
[1770991300087,40.80367682,1971.7,1971.0,0.58236806]
[1770991300288,41.36442156,1971.7,1971.0,0.58236806]
[1770991305789,0.56074474,1971.6,1971.0,0.58236806]
[1770991309397,40.80367682,1971.7,1971.2,0.58236806]
[1770991310491,40.80367682,1971.7,1971.4,0.58236806]
[1770991310797,0.56074474,1972.0,1971.4,0.58766841]
[1770991311096,0.56074474,1972.2,1971.4,0.58766841]
[1770991311793,41.36074474,1971.9,1971.4,0.58766841]
[1770991311987,0.56074474,1971.8,1971.4,0.58766841]
[1770991312995,41.36589291,1971.9,1971.4,0.58766841]
[1770991314195,40.80514817,1971.9,1971.4,0.58766841]
[1770991314598,41.36589291,1971.9,1971.4,0.58766841]
[1770991314796,0.56074474,1971.8,1971.4,0.58766841]
[1770991314999,0.56074474,1971.8,1971.4,0.00530035]
[1770991315199,0.56074474,1971.8,1971.1,5.07642934]
[1770991315499,0.56074474,1971.8,1971.2,0.58236806]
[1770991316299,0.56074474,1971.8,1971.2,0.58765324]
[1770991319599,0.56074474,1971.8,1971.3,0.58236806]
[1770991320191,0.56074474,1971.8,1971.2,3.90201817]
[1770991320396,0.56074474,1971.8,1970.9,5.99208171]
[1770991320596,0.56074474,1971.8,1970.8,6.57444977]
[1770991320799,0.56074474,1971.8,1970.9,0.59611221]
[1770991321303,0.56074474,1971.8,1970.9,0.60177291]
[1770991323007,40.8,1971.7,1970.9,0.60177291]
[1770991323305,0.10818228,1971.6,1970.9,0.60177291]
[1770991323494,0.10818228,1971.6,1970.9,0.0056607]
[1770991324503,0.10818228,1971.6,1970.9,0.60177291]
[1770991325704,0.10818228,1971.6,1970.9,0.0056607]
[1770991326009,0.10818228,1971.6,1970.9,0.60177291]
[1770991326309,40.91112498,1971.7,1970.9,0.60177291]
[1770991326707,0.10908798,1971.6,1970.9,0.60177291]
[1770991326908,40.8,1971.7,1970.9,0.60177291]
[1770991327207,40.90908798,1971.7,1970.9,0.60177291]
[1770991327706,40.90908798,1971.7,1971.0,0.59611221]
[1770991327903,0.10908798,1971.6,1971.0,0.59611221]
[1770991331010,40.8,1971.7,1971.0,0.59611221]
[1770991331406,40.91171606,1971.7,1971.0,0.59611221]
[1770991331610,40.91171606,1971.7,1971.1,0.59611221]
[1770991331806,0.11171606,1971.6,1971.0,0.59611221]
[1770991334310,0.11171606,1971.6,1970.9,0.60177291]
[1770991335116,40.8,1971.7,1970.9,0.60177291]
[1770991335415,40.93870481,1971.7,1971.0,0.59611221]
[1770991336214,0.13870481,1971.6,1971.0,0.59611221]
[1770991336417,40.8,1971.7,1971.2,0.59611221]
[1770991336616,40.8,1971.7,1971.3,0.59611221]
[1770991337318,40.8,1971.7,1971.4,0.59611221]
[1770991337617,0.13870481,1972.0,1971.4,0.59611221]
[1770991338214,0.56108555,1972.2,1971.4,0.59611221]
[1770991338409,40.8,1971.8,1971.4,0.59611221]
[1770991338916,0.56108555,1972.1,1971.4,0.59611221]
[1770991339615,0.56108555,1972.1,1971.5,0.2538]
[1770991339919,41.36108555,1972.0,1971.6,0.59611221]
[1770991340215,40.8,1972.0,1971.6,0.59611221]
[1770991340411,0.0047628,1972.2,1971.6,0.59611221]
[1770991341418,40.8,1972.1,1971.6,0.59611221]
[1770991342315,0.56108555,1972.0,1971.6,0.59611221]
[1770991342516,0.56108555,1972.0,1971.4,5.99208171]
[1770991342721,0.56108555,1972.0,1971.5,0.45316221]
[1770991343019,41.36108555,1972.1,1971.5,0.45316221]
[1770991343220,40.8,1972.1,1971.5,0.45316221]
[1770991344421,41.36108555,1972.1,1971.5,0.45316221]
[1770991344618,0.56108555,1972.0,1971.5,0.45316221]
[1770991346222,0.56108555,1972.0,1971.1,0.49351553]
[1770991346430,0.56108555,1971.8,1970.9,0.0056607]
[1770991346722,12.41,1971.9,1970.9,0.0056607]
[1770991346723,0.56108555,1971.6,1970.9,0.0056607]
[1770991346922,0.56108555,1971.4,1970.6,0.49763491]
[1770991347223,0.56108555,1971.2,1970.5,6.417]
[1770991347818,0.56108555,1971.2,1970.5,0.00557196]
[1770991348726,0.56108555,1971.2,1970.2,6.91729561]
[1770991348921,0.56108555,1971.2,1970.3,0.47839317]
[1770991349220,0.56108555,1971.0,1970.2,6.414]
[1770991349427,0.56108555,1971.0,1969.6,0.48536146]
[1770991349624,0.56108555,1971.0,1969.9,0.47839317]
[1770991349818,0.56108555,1971.0,1969.9,0.00534106]
[1770991350223,0.56108555,1971.0,1969.9,0.48373423]
[1770991352826,0.5583276,1970.8,1969.9,0.48373423]
[1770991353027,0.56427409,1970.8,1969.9,0.48373423]
[1770991354824,0.56427409,1970.8,1969.9,0.00534106]
[1770991355026,0.5583276,1970.6,1969.5,0.47654768]
[1770991355234,0.5583276,1970.4,1969.5,0.47654768]
[1770991356027,0.5583276,1970.4,1969.5,0.48105415]
[1770991358430,0.5583276,1970.4,1969.5,0.48963898]
[1770991358624,0.5583276,1970.4,1969.5,0.00450647]
[1770991359927,0.5583276,1970.4,1969.1,0.48547907]
[1770991360932,0.5583276,1970.4,1969.1,0.49118587]
[1770991361727,0.5583276,1970.4,1969.3,0.49580549]
[1770991367229,0.5583276,1970.4,1969.1,0.49994789]
[1770991367628,0.54919956,1970.1,1969.1,0.49994789]
[1770991369227,0.54919956,1970.1,1969.1,0.56504586]
[1770991370128,0.54919956,1970.1,1969.1,0.0057068]
[1770991370435,0.54919956,1970.0,1969.1,0.0057068]
[1770991371429,0.54919956,1970.0,1969.1,0.56504586]
[1770991373135,0.54919956,1969.8,1969.1,0.56504586]
[1770991374328,40.8,1969.9,1969.1,0.56504586]
[1770991374522,40.8,1969.9,1969.3,0.55933906]
[1770991374929,0.57774664,1970.5,1969.5,0.55933906]
[1770991375329,0.57774664,1970.5,1969.7,0.03916617]
[1770991376040,41.37774664,1970.4,1969.7,0.03916617]
[1770991376330,40.8,1970.4,1969.9,0.03916617]
[1770991378232,0.5607639,1970.8,1969.9,0.03916617]
[1770991379136,40.8,1970.4,1969.9,0.03916617]
[1770991379535,0.5607639,1970.8,1969.9,0.03916617]
[1770991379834,0.5607639,1970.8,1969.9,4.49823813]
[1770991380333,0.00594649,1970.8,1970.0,0.25399]
[1770991380535,40.8,1970.7,1970.0,7.53625236]
[1770991380730,0.00440704,1970.8,1970.3,0.00153945]
[1770991381130,0.59745904,1971.4,1970.4,0.25394]
[1770991381432,0.59745904,1971.6,1970.4,4.75217813]
[1770991381628,0.59745904,1971.6,1970.6,0.25392]
[1770991381836,40.8,1971.3,1970.6,0.25392]
[1770991382342,0.59745904,1971.2,1970.6,0.00391845]
[1770991382836,0.59745904,1971.2,1970.6,0.01590329]
[1770991383239,0.59745904,1971.2,1970.7,0.01198484]
[1770991383541,40.80472503,1971.3,1970.7,0.01198484]
[1770991384237,41.39619165,1971.3,1970.7,0.01198484]
[1770991384438,40.80472503,1971.3,1970.7,0.01198484]
[1770991385627,41.39399029,1971.3,1970.7,0.01198484]
[1770991388030,0.58969681,1971.2,1970.7,0.01198484]
[1770991389234,0.58969681,1971.2,1970.6,0.00391845]